bitfinex-derivatives/quotes_BTCF0:USTF0_20250212
["timestamp","ask_amount","ask_price","bid_price","bid_amount"]
[1739391725530,0.2050744,97522.0,97516.0,1.5]
[1739391725835,0.2050746,97521.0,97516.0,1.5]
[1739391726133,0.2050746,97521.0,97516.0,1.503]
[1739391727034,0.2050746,97521.0,97516.0,1.51]
[1739391728639,0.17407973,97526.0,97516.0,1.51]
[1739391728841,0.0712,97525.0,97516.0,1.51]
[1739391729739,0.2050682,97524.0,97516.0,1.507]
[1739391729938,0.2050682,97524.0,97516.0,1.51]
[1739391732232,0.17511974,97526.0,97516.0,1.51]
[1739391732439,0.0712,97525.0,97516.0,1.51]
[1739391732626,0.17407973,97526.0,97516.0,1.51]
[1739391732830,0.0712,97525.0,97516.0,1.51]
[1739391733432,0.17407973,97526.0,97516.0,1.51]
[1739391733630,0.01506337,97526.0,97525.0,0.2050661]
[1739391733836,0.00015378,97532.0,97528.0,0.2050579]
[1739391734039,0.00015378,97532.0,97531.0,0.3608]
[1739391734333,0.01478966,97532.0,97531.0,0.3608]
[1739391734646,0.00015378,97532.0,97531.0,1.8608]
[1739391736534,0.00415378,97532.0,97531.0,2.0658535]
[1739391741949,0.00365378,97532.0,97531.0,2.0658535]
[1739391742837,0.00365378,97532.0,97531.0,2.08187974]
[1739391743740,0.00365378,97532.0,97531.0,2.0658535]
[1739391743944,0.01463143,97540.0,97531.0,1.8608]
[1739391744243,0.001,97532.0,97531.0,2.0808535]
[1739391744748,0.001,97532.0,97531.0,2.0868535]
[1739391745045,0.12119351,97541.0,97531.0,1.8818]
[1739391745240,0.13530125,97541.0,97540.0,0.5658345]
[1739391745441,0.01410774,97541.0,97540.0,0.5658345]
[1739391745640,0.205016,97549.0,97540.0,0.5658345]
[1739391746548,0.2050188,97548.0,97541.0,0.2050317]
[1739391747142,0.13477972,97550.0,97540.0,0.3668]
[1739391747541,0.13477972,97550.0,97540.0,0.3698]
[1739391747737,0.13477972,97550.0,97541.0,0.005]
[1739391748146,0.13477972,97550.0,97542.0,0.2050297]
[1739391748749,0.13477972,97550.0,97541.0,0.005]
[1739391748950,0.33979352,97550.0,97541.0,0.005]
[1739391749249,0.13477972,97550.0,97542.0,0.002]
[1739391750941,0.13477972,97550.0,97541.0,0.002]
[1739391751145,0.13477972,97550.0,97548.0,0.3608]
[1739391751747,0.13477972,97550.0,97544.0,0.2050252]
[1739391753553,0.13477972,97550.0,97544.0,0.2080252]
[1739391753741,0.13477972,97550.0,97546.0,0.20502]
[1739391753945,0.01358621,97550.0,97546.0,0.20502]
[1739391754146,0.3608,97555.0,97546.0,0.20502]
[1739391754449,0.3608,97555.0,97547.0,1.5]
[1739391754649,0.07116,97554.0,97547.0,1.5]
[1739391754853,0.205008,97553.0,97546.0,0.001]
[1739391755154,0.2050094,97552.0,97546.0,0.001]
[1739391755456,0.0140181,97555.0,97546.0,0.001]
[1739391755758,0.12273188,97556.0,97550.0,0.3608]
[1739391756258,0.1364969,97556.0,97546.0,0.001]
[1739391756848,0.4972969,97556.0,97546.0,0.003]
[1739391757044,0.4972969,97556.0,97546.0,0.002]
[1739391757252,0.4972969,97556.0,97546.0,0.003]
[1739391757654,0.45561693,97556.0,97546.0,0.003]
[1739391758155,0.2050033,97555.0,97548.0,0.3608]
[1739391758357,0.01530339,97556.0,97548.0,0.3608]
[1739391759457,0.205003,97555.0,97548.0,0.3608]
[1739391760054,0.205003,97555.0,97546.0,0.001]
[1739391760354,0.09481693,97556.0,97540.0,0.3608]
[1739391760560,0.07951354,97550.0,97541.0,0.2050317]
[1739391761161,0.07951354,97550.0,97543.0,0.2050279]
[1739391763264,0.07951354,97550.0,97543.0,0.2090279]
[1739391763463,0.07951354,97550.0,97549.0,0.3608]
[1739391763667,0.01530339,97556.0,97549.0,0.3608]
[1739391764357,0.01530339,97556.0,97549.0,0.5658149]
[1739391764761,0.01530339,97556.0,97550.0,1.5]
[1739391765958,0.01530339,97556.0,97549.0,0.3608]
[1739391766366,0.2050072,97554.0,97549.0,0.3608]
[1739391766857,0.01630339,97556.0,97549.0,0.3608]
[1739391767064,0.2050079,97553.0,97549.0,0.3608]
[1739391767863,0.20501,97552.0,97546.0,0.3608]
[1739391768461,0.01530339,97556.0,97546.0,0.3608]
[1739391769061,0.20501,97552.0,97546.0,0.3608]
[1739391769263,0.22030469,97556.0,97546.0,0.3608]
[1739391769764,0.2050041,97555.0,97546.0,0.3628]
[1739391770764,0.2050041,97555.0,97546.0,0.3638]
[1739391772259,0.01376502,97556.0,97546.0,0.3638]
[1739391772462,0.56691521,97559.0,97546.0,0.3638]
[1739391772662,0.5657952,97559.0,97546.0,0.3638]
[1739391772867,0.5657952,97559.0,97546.0,0.3628]
[1739391773068,0.5657952,97559.0,97546.0,0.3638]
[1739391773268,0.15902708,97560.0,97546.0,0.3638]
[1739391773863,0.17323912,97560.0,97546.0,0.3638]
[1739391774370,0.2049969,97558.0,97546.0,0.3638]
[1739391774574,0.17323912,97560.0,97546.0,0.3638]
[1739391774765,0.17323912,97560.0,97546.0,0.5688219]
[1739391775870,0.17323912,97560.0,97546.0,0.3638]
[1739391776062,0.17323912,97560.0,97559.0,0.3608]
[1739391776264,0.01421204,97560.0,97559.0,0.3608]
[1739391776568,0.75924001,97568.0,97559.0,0.3608]
[1739391776768,0.2049974,97558.0,97547.0,0.0622]
[1739391777065,0.2050036,97555.0,97547.0,0.0622]
[1739391777666,0.205008,97553.0,97547.0,0.0622]
[1739391777866,0.2050091,97553.0,97547.0,0.0622]
[1739391778065,0.2050095,97552.0,97547.0,0.0622]
[1739391779466,0.2050095,97552.0,97547.0,0.0632]
[1739391780171,0.2050095,97552.0,97547.0,0.0622]
[1739391780378,0.21916818,97552.0,97547.0,0.0632]
[1739391780873,0.2050178,97548.0,97547.0,0.001]
[1739391781171,0.3608,97553.0,97529.0,0.3608]
[1739391781172,0.3608,97553.0,97530.0,0.0332]
[1739391781379,0.205043,97536.0,97530.0,0.0332]
[1739391782370,0.2050683,97524.0,97520.0,0.0332]
[1739391782672,0.15902708,97530.0,97520.0,0.0332]
[1739391782879,0.07951354,97530.0,97529.0,0.3608]
[1739391783075,0.07951354,97537.0,97529.0,0.3608]
[1739391783972,0.09326614,97537.0,97528.0,0.0328]
[1739391784373,0.3608,97534.0,97528.0,0.0328]
[1739391784578,0.07112,97533.0,97528.0,0.0328]
[1739391785170,0.07112,97533.0,97529.0,0.009]
[1739391785771,0.07112,97533.0,97529.0,0.013]
[1739391785966,0.07212,97533.0,97529.0,0.004]
[1739391786170,0.07212,97533.0,97528.0,0.0428]
[1739391786480,0.07212,97533.0,97530.0,0.2050549]
[1739391786777,0.001,97533.0,97530.0,0.2050549]
[1739391787369,0.001,97533.0,97531.0,0.2050526]
[1739391788272,0.0137526,97537.0,97535.0,0.2050437]
[1739391788468,0.3608,97544.0,97537.0,0.2050409]
[1739391788775,0.01403268,97543.0,97536.0,0.0669]
[1739391789177,0.01403268,97543.0,97541.0,0.2050319]
[1739391790677,0.01403268,97543.0,97536.0,0.0719]
[1739391791371,0.01403268,97543.0,97536.0,0.0689]
[1739391791568,0.01403268,97543.0,97541.0,0.001]
[1739391791971,0.01403268,97543.0,97541.0,0.002]
[1739391792371,0.01403268,97543.0,97541.0,0.001]
[1739391792570,0.01403268,97543.0,97536.0,0.0729]
[1739391792981,0.01403268,97543.0,97536.0,0.0709]
[1739391793177,0.01403268,97543.0,97541.0,0.001]
[1739391793581,0.5658304,97542.0,97536.0,0.0709]
[1739391793877,0.01403268,97543.0,97526.0,0.3608]
[1739391793878,0.3608,97541.0,97526.0,0.3608]
[1739391794181,0.12117086,97536.0,97526.0,1.8608]
[1739391794379,0.12117086,97536.0,97528.0,0.2050597]
[1739391795079,0.12117086,97536.0,97529.0,0.2050576]
[1739391796281,0.12117086,97536.0,97529.0,0.2090576]
[1739391796487,0.12117086,97536.0,97535.0,0.3608]
[1739391796673,0.001,97541.0,97535.0,0.2050437]
[1739391796878,0.001,97541.0,97536.0,0.0341]
[1739391797586,0.01403268,97543.0,97536.0,0.0341]
[1739391798785,0.01403268,97543.0,97536.0,0.0391]
[1739391799685,0.37483268,97543.0,97536.0,0.0391]
[1739391800083,0.01403268,97543.0,97536.0,0.0391]
[1739391801481,0.00153834,97550.0,97542.0,0.3608]
[1739391801682,0.00153834,97550.0,97549.0,0.5658157]
[1739391801879,0.18447986,97569.0,97568.0,0.2049757]
[1739391802084,0.18447986,97569.0,97568.0,0.5657757]
[1739391802483,0.0699,97579.0,97568.0,2.0657757]
[1739391802684,0.3608,97576.0,97568.0,2.0657757]
[1739391803082,0.2049639,97574.0,97568.0,1.5]
[1739391803283,0.2049549,97578.0,97568.0,1.7049747]
[1739391803489,0.2049641,97574.0,97568.0,1.5]
[1739391803690,0.3608,97573.0,97568.0,1.5]
[1739391803891,4.817e-05,97569.0,97568.0,1.5]
[1739391804493,0.00504817,97569.0,97568.0,1.501]
[1739391804691,0.00504817,97569.0,97568.0,1.503]
[1739391805195,0.20502177,97569.0,97568.0,0.003]
[1739391806386,0.21826934,97569.0,97568.0,0.003]
[1739391807496,0.21826934,97569.0,97568.0,0.002]
[1739391807796,0.22226934,97569.0,97568.0,0.001]
[1739391808195,0.2049925,97560.0,97559.0,0.00015378]
[1739391808499,0.2049826,97565.0,97559.0,0.00015378]
[1739391808892,0.2049848,97564.0,97559.0,0.00015378]
[1739391809397,0.2049848,97564.0,97559.0,0.00115378]
[1739391810392,0.1344666,97569.0,97559.0,0.00315378]
[1739391810591,0.2049865,97563.0,97559.0,0.00315378]
[1739391810992,0.3608,97565.0,97559.0,0.00115378]
[1739391811194,0.2049887,97562.0,97559.0,0.00215378]
[1739391811398,0.2049887,97562.0,97559.0,0.00115378]
[1739391811696,0.2049908,97561.0,97559.0,0.00215378]
[1739391811903,0.2049908,97561.0,97559.0,0.00315378]
[1739391812500,0.2049925,97560.0,97559.0,0.00315378]
[1739391814195,0.2370855,97564.0,97559.0,0.00215378]
[1739391814397,0.0321,97564.0,97559.0,0.00115378]
[1739391814598,0.0321,97564.0,97559.0,0.00215378]
[1739391814898,0.2049908,97561.0,97559.0,0.00115378]
[1739391815391,0.2049908,97561.0,97559.0,0.00215378]
[1739391818596,0.2049925,97560.0,97559.0,0.00215378]
[1739391819710,0.5657925,97560.0,97559.0,0.00215378]
[1739391820594,0.5657925,97560.0,97559.0,0.00115378]
[1739391820801,0.5657925,97560.0,97559.0,0.00215378]
[1739391821403,0.5657925,97560.0,97559.0,0.00115378]
[1739391821711,0.5667925,97560.0,97559.0,0.00115378]
[1739391822107,0.5677925,97560.0,97559.0,0.00015378]
[1739391822308,0.5707925,97560.0,97559.0,0.00015378]
[1739391824507,0.5667925,97560.0,97559.0,0.00015378]
[1739391824810,0.5717925,97560.0,97559.0,0.00015378]
[1739391825312,0.5677925,97560.0,97559.0,0.00015378]
[1739391825516,0.5737925,97560.0,97559.0,0.00115378]
[1739391825814,0.2129925,97560.0,97559.0,0.00115378]
[1739391826111,0.5677925,97560.0,97559.0,0.00015378]
[1739391826304,0.5727925,97560.0,97559.0,0.00115378]
[1739391826613,0.5747925,97560.0,97559.0,0.00115378]
[1739391826812,0.5747925,97560.0,97548.0,0.0343]
[1739391826813,0.2050157,97549.0,97548.0,0.0343]
[1739391827008,0.2050325,97541.0,97540.0,0.0327]
[1739391827214,0.3608,97541.0,97531.0,0.0343]
[1739391827510,0.3608,97533.0,97530.0,0.00153782]
[1739391827808,0.205058,97529.0,97522.0,0.0684]
[1739391828015,0.205058,97529.0,97522.0,0.06855378]
[1739391828216,0.205058,97529.0,97523.0,1.5]
[1739391829018,0.3618,97533.0,97523.0,1.5]
[1739391829211,0.07108,97532.0,97523.0,1.5]
[1739391829610,0.001,97529.0,97523.0,1.515]
[1739391829804,0.205062,97527.0,97523.0,1.515]
[1739391831215,0.205062,97527.0,97523.0,1.5]
[1739391831430,0.205062,97527.0,97523.0,1.501]
[1739391832220,0.001,97527.0,97523.0,1.501]
[1739391832414,0.07108,97526.0,97523.0,1.508]
[1739391833219,0.07108,97526.0,97523.0,1.501]
[1739391833414,0.07108,97526.0,97523.0,1.504]
[1739391833916,0.2761443,97526.0,97523.0,1.504]
[1739391834222,0.001,97527.0,97523.0,1.504]
[1739391834516,0.07208,97526.0,97523.0,1.504]
[1739391835322,0.07208,97526.0,97523.0,1.7060699]
[1739391835323,0.001,97526.0,97523.0,1.7060699]
[1739391835524,0.001,97526.0,97524.0,0.2050671]
[1739391836007,0.001,97526.0,97525.0,0.0342]
[1739391836314,0.07208,97526.0,97525.0,1.5342]
[1739391836926,0.08545207,97526.0,97525.0,1.7392661]
[1739391837228,0.01437207,97526.0,97525.0,1.7392661]
[1739391838116,0.01337207,97526.0,97525.0,1.7462661]
[1739391838314,0.001,97526.0,97525.0,1.7502661]
[1739391845031,0.00015378,97541.0,97525.0,1.5452]
[1739391845221,0.00015378,97541.0,97540.0,0.5658346]
[1739391845925,0.00015378,97541.0,97540.0,2.1321346]
[1739391847241,0.00115378,97541.0,97540.0,2.1321346]
[1739391847938,0.00015378,97541.0,97540.0,2.1321346]
[1739391848230,0.00115378,97541.0,97540.0,2.1381346]
[1739391848432,0.00115378,97541.0,97540.0,2.1431346]
[1739391852433,0.2049915,97561.0,97560.0,0.2049925]
[1739391852732,4.817e-05,97569.0,97561.0,0.2049888]
[1739391853029,0.2049883,97562.0,97552.0,0.3608]
[1739391853328,0.32615916,97562.0,97557.0,0.2049981]
[1739391853734,0.0406,97561.0,97560.0,0.001]
[1739391853932,0.11164,97561.0,97560.0,0.001]
[1739391854127,0.3166304,97561.0,97560.0,0.001]
[1739391854329,0.2455904,97561.0,97560.0,0.001]
[1739391854522,0.2455904,97561.0,97553.0,0.2050071]
[1739391854745,0.2365904,97561.0,97557.0,0.001]
[1739391854935,0.2365904,97561.0,97558.0,1.5]
[1739391855332,0.0316,97561.0,97558.0,1.5]
[1739391855528,0.07104,97560.0,97558.0,1.5]
[1739391856534,0.07104,97560.0,97558.0,1.7049959]
[1739391856839,0.0754,97561.0,97558.0,1.7049959]
[1739391857041,0.007,97560.0,97558.0,1.7059959]
[1739391857241,0.008,97560.0,97559.0,0.2049946]
[1739391857543,0.008,97560.0,97558.0,1.501]
[1739391857840,0.07104,97559.0,97558.0,1.501]
[1739391859139,0.07104,97559.0,97558.0,1.7059967]
[1739391859344,0.001,97560.0,97558.0,1.7059967]
[1739391859838,0.008,97561.0,97558.0,1.501]
[1739391860040,0.008,97561.0,97560.0,0.5657925]
[1739391860543,0.01303859,97566.0,97565.0,0.204982]
[1739391860746,4.817e-05,97569.0,97565.0,0.3608]
[1739391861044,4.817e-05,97569.0,97568.0,0.2049757]
[1739391861235,4.817e-05,97569.0,97568.0,1.7049757]
[1739391861435,0.01239453,97569.0,97568.0,1.7049757]
[1739391861634,4.817e-05,97569.0,97568.0,1.7049757]
[1739391862139,0.3608,97588.0,97568.0,1.5]
[1739391862341,0.2049403,97585.0,97581.0,0.2049481]
[1739391862644,0.2049423,97584.0,97579.0,0.3608]
[1739391864247,0.2099423,97584.0,97579.0,0.3608]
[1739391865843,0.005,97584.0,97581.0,0.2049477]
[1739391866037,0.005,97584.0,97582.0,0.2049459]
[1739391866643,0.005,97584.0,97579.0,0.3608]
[1739391866948,0.071,97583.0,97581.0,0.001]
[1739391868051,0.0672,97582.0,97581.0,0.001]
[1739391868653,0.0672,97582.0,97574.0,0.3608]
[1739391868844,0.1008,97582.0,97574.0,0.3608]
[1739391869653,0.1058,97582.0,97581.0,0.001]
[1739391869839,0.1768,97582.0,97581.0,0.001]
[1739391871351,0.3817463,97582.0,97581.0,0.001]
[1739391871550,0.3107463,97582.0,97581.0,0.001]
[1739391871751,0.3057463,97582.0,97574.0,0.3608]
[1739391872751,0.1058,97582.0,97581.0,0.001]
[1739391872946,0.1768,97582.0,97581.0,0.001]
[1739391874055,0.1432,97582.0,97581.0,0.001]
[1739391874254,0.1091,97582.0,97581.0,0.001]
[1739391874454,0.0381,97582.0,97581.0,0.001]
[1739391875052,0.0331,97582.0,97574.0,0.3608]
[1739391875453,0.01407676,97586.0,97580.0,0.2049498]
[1739391875949,0.005,97582.0,97581.0,0.001]
[1739391876154,0.076,97582.0,97581.0,0.001]
[1739391876650,0.071,97582.0,97581.0,1.7049484]
[1739391876855,0.01907676,97586.0,97581.0,1.7049484]
[1739391876856,0.01907676,97586.0,97582.0,0.2049459]
[1739391877048,0.01907676,97586.0,97583.0,0.3608]
[1739391877254,0.01907676,97586.0,97583.0,0.565744]
[1739391877848,0.01907676,97586.0,97583.0,0.3608]
[1739391878048,0.01907676,97586.0,97585.0,0.20494]
[1739391878450,0.01407676,97586.0,97585.0,0.20494]
[1739391879255,0.02307676,97586.0,97585.0,0.20594]
[1739391879755,0.02207676,97586.0,97585.0,0.20594]
[1739391880057,0.02307676,97586.0,97585.0,0.20594]
[1739391881256,0.02153902,97586.0,97585.0,0.20594]
[1739391881955,0.2049191,97595.0,97585.0,0.001]
[1739391882260,0.2049211,97594.0,97593.0,0.3608]
[1739391882461,0.2049211,97594.0,97593.0,1.8608]
[1739391883056,0.11241155,97600.0,97594.0,0.2049205]
[1739391883755,0.008,97595.0,97594.0,0.2049205]
[1739391885360,0.11741155,97600.0,97599.0,0.2049106]
[1739391885764,0.105,97600.0,97599.0,0.2049106]
[1739391886053,0.1,97600.0,97599.0,0.2049106]
[1739391886257,0.0333,97624.0,97594.0,0.0984]
[1739391886453,0.2048808,97614.0,97610.0,0.3608]
[1739391886652,0.2048808,97614.0,97611.0,1.5]
[1739391887052,0.37368286,97618.0,97611.0,1.5]
[1739391887253,0.2048814,97613.0,97611.0,1.5]
[1739391887454,0.2048833,97612.0,97611.0,1.5]
[1739391888463,0.2048833,97612.0,97611.0,1.501]
[1739391888959,0.2048833,97612.0,97611.0,1.5]
[1739391889262,0.2178833,97612.0,97611.0,1.502]
[1739391889762,0.2178833,97612.0,97611.0,0.002]
[1739391889963,0.013,97612.0,97611.0,0.002]
[1739391890261,0.08396,97612.0,97611.0,0.002]
[1739391891664,0.07196,97612.0,97611.0,0.003]
[1739391891850,0.07096,97612.0,97611.0,0.004]
[1739391892351,0.01288286,97618.0,97610.0,0.3608]
[1739391892560,0.12117086,97621.0,97615.0,0.2048769]
[1739391892869,0.12117086,97621.0,97618.0,0.3608]
[1739391893055,0.13393902,97621.0,97618.0,0.3608]
[1739391893562,0.01276816,97621.0,97618.0,0.3608]
[1739391893763,0.0333,97624.0,97615.0,0.2048769]
[1739391893963,0.0333,97624.0,97618.0,0.3608]
[1739391894156,0.0333,97624.0,97615.0,0.2048769]
[1739391894558,0.25104013,97624.0,97611.0,0.003]
[1739391894755,0.12117086,97621.0,97611.0,0.002]
[1739391894959,0.33003566,97621.0,97611.0,0.002]
[1739391895356,0.33003566,97621.0,97610.0,0.2048862]
[1739391895559,0.32603566,97621.0,97615.0,0.001]
[1739391896062,0.32603566,97621.0,97611.0,0.003]
[1739391896270,0.32603566,97621.0,97611.0,0.002]
[1739391896470,0.32603566,97621.0,97611.0,0.003]
[1739391896768,0.2048749,97616.0,97615.0,0.001]
[1739391896970,0.5656749,97616.0,97615.0,0.001]
[1739391897868,0.2048749,97616.0,97615.0,0.001]
[1739391898269,0.12117086,97621.0,97611.0,0.003]
[1739391898460,0.2048833,97612.0,97611.0,0.003]
[1739391898661,0.5656833,97612.0,97611.0,0.003]
[1739391899057,0.5656833,97612.0,97611.0,0.001]
[1739391899466,0.2048958,97607.0,97605.0,1.5]
[1739391900369,0.3608,97612.0,97605.0,1.5]
[1739391900560,0.3608,97612.0,97599.0,0.3608]
[1739391900561,0.07096,97611.0,97599.0,0.3608]
[1739391900760,0.5657022,97603.0,97594.0,0.0639]
[1739391901168,0.5657022,97603.0,97602.0,1.5001537]
[1739391901867,0.2049022,97603.0,97602.0,1.5001537]
[1739391902065,0.2079022,97603.0,97602.0,1.5001537]
[1739391902368,0.003,97603.0,97602.0,1.5001537]
[1739391902566,0.003,97603.0,97602.0,1.705058]
[1739391902768,0.3955,97611.0,97602.0,1.705058]
[1739391903070,0.002,97603.0,97602.0,1.5011537]
[1739391903761,0.002,97603.0,97602.0,1.5001537]
[1739391904363,0.0347,97611.0,97602.0,1.5001537]
[1739391904573,0.002,97603.0,97602.0,1.705058]
[1739391905260,0.01273417,97612.0,97604.0,0.2048999]
[1739391905461,0.0319,97614.0,97610.0,0.3608]
[1739391905659,0.0447978,97614.0,97610.0,0.3608]
[1739391906268,0.0128978,97614.0,97605.0,0.3608]
[1739391906467,0.12117086,97615.0,97610.0,0.2048861]
[1739391907573,0.003,97614.0,97610.0,0.2048861]
[1739391908365,0.12417086,97615.0,97610.0,0.2048861]
[1739391909172,0.12117086,97615.0,97614.0,0.3608]
[1739391909373,0.01233167,97621.0,97614.0,0.3608]
[1739391909579,0.75908,97624.0,97618.0,0.2048705]
[1739391909778,0.75772,97624.0,97619.0,1.5]
[1739391910082,0.07092,97623.0,97619.0,1.5]
[1739391910378,0.2048623,97622.0,97619.0,1.5]
[1739391911978,0.2058623,97622.0,97619.0,1.5]
[1739391913085,0.2048647,97621.0,97619.0,1.501]
[1739391914080,0.011,97622.0,97619.0,1.501]
[1739391914280,0.07092,97621.0,97619.0,1.501]
[1739391914475,0.08092,97621.0,97619.0,1.501]
[1739391915294,0.08192,97621.0,97619.0,1.501]
[1739391924209,0.2867852,97621.0,97619.0,1.501]
[1739391924396,0.2048665,97620.0,97619.0,1.501]
[1739391925494,0.2048665,97620.0,97619.0,1.5]
[1739391925700,0.2058665,97620.0,97619.0,1.5]
[1739391925899,0.2158665,97620.0,97619.0,1.501]
[1739391930111,0.011,97620.0,97619.0,1.501]
[1739391930311,0.08188,97620.0,97619.0,1.501]
[1739391934907,0.2867465,97620.0,97619.0,1.501]
[1739391935108,0.2158665,97620.0,97619.0,1.501]
[1739391938311,0.011,97620.0,97619.0,1.501]
[1739391938515,0.08188,97620.0,97619.0,1.501]
[1739391946822,0.2867465,97620.0,97619.0,1.501]
[1739391947019,0.2158665,97620.0,97619.0,1.501]
[1739391948626,0.011,97620.0,97619.0,1.501]
[1739391948929,0.08188,97620.0,97619.0,1.501]
[1739391950718,0.08188,97620.0,97619.0,1.7058686]
[1739391950917,0.011,97620.0,97619.0,1.7058686]
[1739391953220,0.011,97620.0,97619.0,1.501]
[1739391953424,0.2867465,97620.0,97619.0,1.501]
[1739391953622,0.2158665,97620.0,97619.0,1.501]
[1739391955126,0.011,97620.0,97619.0,1.501]
[1739391955325,0.08188,97620.0,97619.0,1.501]
[1739391955923,0.2867465,97620.0,97619.0,1.501]
[1739391956229,0.2158665,97620.0,97619.0,1.501]
[1739391956620,0.011,97620.0,97604.0,0.3608]
[1739391956823,0.3608,97614.0,97599.0,0.00153674]
[1739391957016,0.3608,97605.0,97603.0,1.5]
[1739391957223,0.07088,97604.0,97603.0,1.5]
[1739391958615,0.2767804,97604.0,97603.0,1.5]
[1739391958823,0.2059004,97604.0,97603.0,1.5]
[1739391959520,0.22130061,97604.0,97603.0,1.5]
[1739391959917,0.01640021,97604.0,97603.0,1.501]
[1739391960128,0.09528021,97604.0,97603.0,1.501]
[1739391963626,0.07984,97604.0,97603.0,1.501]
[1739391965032,0.009,97604.0,97603.0,1.501]
[1739391965238,0.07984,97604.0,97603.0,1.8618]
[1739391965930,0.2048735,97617.0,97614.0,0.2048791]
[1739391966240,0.2048794,97614.0,97608.0,0.20489]
[1739391966537,0.12102976,97620.0,97608.0,0.20489]
[1739391966727,0.12102976,97620.0,97603.0,1.8618]
[1739391966928,0.12102976,97620.0,97610.0,0.204887]
[1739391967128,0.12102976,97620.0,97611.0,0.3608]
[1739391967328,0.01606276,97620.0,97615.0,1.5]
[1739391967529,0.32589526,97621.0,97615.0,1.5]
[1739391967937,0.006,97617.0,97615.0,1.704876]
[1739391968133,0.006,97617.0,97616.0,0.0353]
[1739391968631,0.2048563,97625.0,97616.0,0.0353]
[1739391968831,0.006,97621.0,97616.0,0.0353]
[1739391969337,0.2048563,97625.0,97616.0,0.0353]
[1739391969531,0.2048563,97625.0,97616.0,0.0363]
[1739391970038,0.2048563,97625.0,97617.0,0.2048726]
[1739391970539,0.3608,97628.0,97619.0,0.3608]
[1739391970738,0.07084,97627.0,97619.0,0.3608]
[1739391971140,0.006,97621.0,97620.0,0.2048665]
[1739391971731,0.36216,97628.0,97619.0,0.3618]
[1739391971941,0.2048611,97623.0,97619.0,0.3618]
[1739391972943,0.2048649,97621.0,97619.0,0.3618]
[1739391973135,0.2108649,97621.0,97620.0,0.001]
[1739391974735,0.2048649,97621.0,97620.0,0.001]
[1739391975645,0.2108649,97621.0,97620.0,0.002]
[1739391979335,0.006,97621.0,97620.0,0.002]
[1739391979639,0.07684,97621.0,97620.0,0.002]
[1739391980543,0.2817044,97621.0,97620.0,0.002]
[1739391980741,0.2108644,97621.0,97620.0,0.002]
[1739391981143,0.006,97621.0,97620.0,0.002]
[1739391981445,0.07684,97621.0,97620.0,0.002]
[1739391984141,0.006,97621.0,97620.0,0.002]
[1739391984343,0.07684,97621.0,97620.0,0.0373]
[1739391984542,0.006,97621.0,97620.0,0.0373]
[1739391984742,0.006,97621.0,97620.0,1.5373]
[1739391985349,0.2108644,97621.0,97620.0,0.001]
[1739391986636,0.3608,97621.0,97610.0,1.5]
[1739391986845,0.22960834,97620.0,97610.0,1.5]
[1739391987042,0.2048854,97611.0,97610.0,1.5]
[1739391987845,0.2048766,97616.0,97610.0,1.5]
[1739391988050,0.2048766,97616.0,97610.0,1.8608]
[1739391988946,0.15876834,97620.0,97610.0,1.8608]
[1739391989552,0.2048825,97613.0,97610.0,1.5]
[1739391990053,0.004,97611.0,97610.0,1.5]
[1739391990247,0.07484,97611.0,97610.0,1.5]
[1739391991047,0.07084,97611.0,97610.0,1.5]
[1739391992052,0.07484,97611.0,97610.0,1.5]
[1739391993152,0.30746644,97699.0,97655.0,0.1027]
[1739391993354,0.30746644,97699.0,97691.0,0.3608]
[1739391993750,0.2047141,97693.0,97691.0,0.3608]
[1739391995451,0.2047141,97693.0,97691.0,0.3618]
[1739391995956,0.2047141,97693.0,97691.0,0.3608]
[1739391996150,0.2047141,97693.0,97691.0,0.3618]
[1739391996855,0.2047141,97693.0,97691.0,0.3628]
[1739391997153,0.21897654,97693.0,97691.0,0.3628]
[1739392000748,0.01426244,97693.0,97691.0,0.3628]
[1739392000956,0.1,97700.0,97691.0,0.3628]
[1739392001156,0.1,97700.0,97699.0,0.3608]
[1739392001352,0.1708,97700.0,97699.0,0.3608]
[1739392002050,0.18539004,97700.0,97699.0,0.3608]
[1739392002250,0.11459004,97700.0,97699.0,0.3608]
[1739392002655,0.11459004,97700.0,97699.0,0.3618]
[1739392003361,0.11659004,97700.0,97699.0,0.3618]
[1739392003955,0.11659004,97700.0,97699.0,0.3628]
[1739392010763,0.32128884,97700.0,97699.0,0.3628]
[1739392012563,0.11659004,97700.0,97683.0,0.0327]
[1739392012764,0.204746,97678.0,97673.0,0.3608]
[1739392012964,0.1207895,97683.0,97673.0,0.3608]
[1739392013167,0.1527895,97690.0,97673.0,0.3608]
[1739392013565,0.2047414,97680.0,97673.0,0.3608]
[1739392014369,0.2047414,97680.0,97676.0,0.3608]
[1739392014570,0.2047274,97687.0,97676.0,0.3608]
[1739392014765,0.2047274,97687.0,97686.0,0.3608]
[1739392015872,0.001,97687.0,97686.0,0.3608]
[1739392016072,0.07576,97687.0,97686.0,0.3618]
[1739392018377,0.204746,97678.0,97676.0,0.3608]
[1739392018675,0.3608,97683.0,97661.0,0.0349]
[1739392018869,0.3255516,97670.0,97661.0,0.0349]
[1739392019065,0.1207895,97670.0,97661.0,0.0349]
[1739392019267,0.2047847,97659.0,97658.0,0.0349]
[1739392019669,0.3608,97665.0,97658.0,0.0349]
[1739392020377,0.2047707,97666.0,97658.0,0.0349]
[1739392020378,0.2047707,97666.0,97658.0,0.0389]
[1739392020973,0.21944716,97666.0,97658.0,0.0409]
[1739392021174,0.01467646,97666.0,97658.0,0.006]
[1739392021375,0.3608,97663.0,97658.0,0.006]
[1739392021575,0.2755392,97662.0,97658.0,0.006]
[1739392021785,0.23941984,97668.0,97658.0,0.002]
[1739392022080,0.23941984,97668.0,97658.0,0.005]
[1739392022279,0.2047687,97667.0,97658.0,0.005]